bitfinex/quotes_ETHUSD_20260111
["timestamp","ask_amount","ask_price","bid_price","bid_amount"]
[1768174907262,3.21217693,3113.2,3112.8,0.001]
[1768174907852,4.18183092,3113.2,3112.8,0.001]
[1768174908075,0.96965399,3113.2,3112.8,0.001]
[1768174909425,4.18180651,3113.2,3112.8,0.001]
[1768174913157,0.96965399,3113.2,3112.8,0.001]
[1768174913540,4.18180769,3113.2,3112.8,0.001]
[1768174914061,3.2121537,3113.2,3112.8,0.001]
[1768174915041,0.96965399,3113.6,3112.8,0.19977602]
[1768174915242,0.00280648,3113.7,3113.0,0.19877602]
[1768174916070,0.00280648,3113.7,3113.2,0.19876419]
[1768174916372,0.00280648,3113.7,3113.3,0.34109964]
[1768174917439,0.002,3113.4,3113.3,0.34109964]
[1768174917644,0.00280648,3113.7,3113.3,0.34109964]
[1768174920071,0.00280648,3113.7,3113.1,0.1997295]
[1768174920276,0.00280648,3113.7,3113.2,3.21212258]
[1768174920485,0.00280648,3113.7,3113.1,3.41195465]
[1768174920650,0.97246047,3113.7,3113.1,0.001]
[1768174920845,0.96965399,3113.6,3113.1,0.001]
[1768174922745,0.96965399,3113.5,3113.1,0.001]
[1768174925882,0.93429009,3113.4,3113.1,0.001]
[1768174927180,0.93429009,3113.4,3112.8,0.001]
[1768174927686,0.93429009,3113.2,3112.4,0.00083923]
[1768174927982,0.93429009,3113.0,3112.4,0.00083923]
[1768174928979,0.93429009,3113.4,3112.4,0.20146142]
[1768174929184,0.002,3114.0,3112.4,0.20146142]
[1768174929185,0.93429009,3113.6,3112.4,0.20146142]
[1768174929669,0.002,3113.1,3112.4,0.20146142]
[1768174929845,0.002,3113.4,3112.7,0.20060218]
[1768174930050,0.002,3113.4,3112.7,0.86323268]
[1768174931995,0.002,3113.4,3112.8,3.21254176]
[1768174933185,0.002,3113.4,3112.8,0.20056352]
[1768174933776,0.002,3113.4,3112.7,3.87526666]
[1768174935971,0.002,3113.4,3112.7,7.28845647]
[1768174936291,0.002,3113.4,3112.8,0.57372137]
[1768174936496,0.002,3113.4,3112.9,3.21243856]
[1768174936862,0.002,3113.4,3112.8,3.78621586]
[1768174938189,0.002,3113.4,3112.8,0.57372137]
[1768174938790,0.9862122,3113.4,3112.8,0.57372137]
[1768174939090,0.9862122,3113.4,3112.9,0.39868602]
[1768174939290,0.9862122,3113.4,3112.7,0.20054484]
[1768174939496,0.9862122,3113.4,3112.6,3.46466912]
[1768174940893,0.9862122,3113.4,3112.7,3.21263867]
[1768174942497,0.002,3113.1,3112.7,3.21263867]
[1768174943490,0.002,3113.1,3112.6,3.46474091]
[1768174943802,0.002,3113.1,3112.7,0.36652497]
[1768174943995,0.9862122,3113.1,3112.7,0.36652497]
[1768174947610,0.9862122,3113.1,3112.5,0.252]
[1768174948304,0.9862122,3113.1,3112.5,3.46479608]
[1768174954101,0.9862122,3113.1,3112.8,0.001]
[1768174954929,0.002,3113.1,3112.8,0.001]
[1768174957413,0.90638201,3113.3,3112.8,0.001]
[1768174961278,0.90638201,3113.3,3112.8,0.34240106]
[1768174965506,0.90638201,3113.3,3112.8,0.001]
[1768174965713,0.90638201,3113.3,3113.1,0.001]
[1768174969222,0.002,3113.4,3113.1,0.001]
[1768174975035,0.002,3113.4,3113.1,0.20124344]
[1768174975837,0.00280648,3113.7,3113.1,0.20124344]
[1768174977524,0.00280648,3113.7,3113.1,0.56779395]
[1768174977729,0.002,3113.4,3113.1,0.56779395]
[1768174978627,0.002,3113.4,3113.1,0.36755051]
[1768174978819,0.00280648,3113.7,3113.2,0.2002265]
[1768174979219,0.00280648,3113.7,3113.2,3.41225616]
[1768174979416,0.00280648,3113.7,3113.3,0.69919776]
[1768174981212,0.002,3114.0,3113.5,0.20021013]
[1768174981531,0.00080632,3114.3,3113.7,0.20021013]
[1768174983505,0.00080632,3114.3,3113.7,3.41180527]
[1768174983705,0.00080632,3114.3,3113.8,0.36638053]
[1768174985642,0.00080632,3114.3,3113.8,3.57788824]
[1768174986407,0.00080632,3114.3,3113.8,0.36638053]
[1768174987014,0.00080632,3114.3,3113.8,3.57788568]
[1768174989223,0.00080632,3114.3,3113.9,0.20016429]
[1768174989523,0.002,3114.3,3114.1,3.21120066]
[1768174989730,0.00080592,3114.9,3114.2,0.252]
[1768174989951,1.0006844,3114.9,3114.2,0.252]
[1768174991544,0.00080592,3114.9,3114.4,3.21089134]
[1768174991738,0.00080592,3114.9,3114.5,0.34162251]
[1768174994956,0.00080592,3114.9,3114.5,3.55238808]
[1768174995162,0.002,3115.3,3114.6,0.20531549]
[1768174995344,0.002,3115.3,3114.8,0.20531549]
[1768174995671,0.002,3115.3,3114.7,0.252]
[1768174995672,0.002,3115.6,3114.9,6.42075186]
[1768174995861,1.00187848,3115.6,3115.0,0.64207519]
[1768174996447,0.00080528,3115.8,3115.1,0.2791123]
[1768174996659,0.00080528,3115.8,3115.2,0.5311123]
[1768174997032,0.00080528,3115.8,3115.2,0.252]
[1768174997232,1.00068376,3115.8,3115.0,0.92118749]
[1768174997470,1.00068376,3115.8,3115.1,0.66515634]
[1768174997762,1.00068376,3115.8,3115.1,3.462151]
[1768174997928,1.00068376,3115.8,3115.1,3.210151]
[1768174998132,1.00068376,3115.8,3115.2,0.252]
[1768174999628,0.99987848,3115.7,3114.7,3.4896442]
[1768174999833,0.99987848,3115.7,3114.8,0.34896442]
[1768175000067,0.99987848,3115.7,3114.8,0.27909508]
[1768175000364,0.99987848,3115.7,3114.7,0.252]
[1768175000365,0.00080528,3115.8,3115.2,3.21004776]
[1768175000936,0.00080528,3115.8,3115.2,6.42011452]
[1768175001165,0.002,3115.5,3115.2,3.21004776]
[1768175001366,0.00080528,3115.8,3115.2,6.42011452]
[1768175001537,0.00280528,3115.8,3115.2,7.34203548]
[1768175001995,0.002,3116.2,3115.3,0.27909089]
[1768175002276,0.99987848,3116.7,3115.9,0.27908676]
[1768175002489,0.99987848,3116.7,3115.9,0.252]
[1768175002655,0.99987848,3116.7,3116.0,0.27908676]
[1768175002838,0.0028048,3116.8,3116.0,0.27908676]
[1768175003038,0.00200001,3116.6,3116.0,0.27908676]
[1768175003664,0.00200001,3116.6,3116.1,3.20913962]
[1768175004282,0.00200001,3116.6,3116.1,3.48821825]
[1768175004961,0.00200001,3116.6,3116.0,3.48828888]
[1768175005290,0.00200001,3116.6,3116.0,6.69753149]
[1768175005490,0.00200001,3116.6,3116.1,0.27907464]
[1768175005862,0.00200001,3116.6,3116.3,3.20893367]
[1768175006998,0.0028048,3116.8,3116.3,6.69693803]
[1768175007186,0.99987848,3117.3,3116.4,0.27987167]
[1768175007392,0.99987848,3117.8,3116.8,0.43610025]
[1768175007596,0.99987848,3117.8,3117.0,0.43690553]
[1768175007790,0.99987848,3117.8,3117.1,3.2081101]
[1768175008000,0.99987848,3117.8,3117.2,0.252]
[1768175008208,0.99987848,3117.8,3117.0,3.20900894]
[1768175008508,0.99987848,3117.7,3117.0,0.00080528]
[1768175008850,0.00080424,3118.0,3117.1,0.43609639]
[1768175009082,0.99987848,3117.9,3117.0,0.00080528]
[1768175009289,0.99987848,3117.9,3117.0,3.20901748]
[1768175010010,0.99987848,3117.8,3117.0,3.20901748]
[1768175010171,0.99987848,3117.8,3117.0,3.87596018]
[1768175010360,0.00080424,3118.0,3117.1,0.4360888]
[1768175010957,1.00068272,3118.0,3117.1,0.4360888]
[1768175011590,0.99987848,3117.9,3117.0,0.66774798]
[1768175011889,0.99987848,3117.9,3117.2,0.252]
[1768175012090,0.99987848,3117.8,3117.0,0.00080528]
[1768175012286,0.99987848,3117.8,3117.1,0.252]
[1768175012885,0.00080424,3118.0,3117.1,0.252]
[1768175012886,1.00068272,3118.0,3117.2,3.20799503]
[1768175013090,1.00068272,3118.0,3117.3,0.43608139]
[1768175013091,0.00080424,3118.0,3117.3,0.43608139]
[1768175013385,0.99987848,3118.3,3117.6,0.00080432]
[1768175013594,0.99987848,3118.3,3117.7,0.252]
[1768175014161,0.96991641,3118.2,3117.7,0.252]
[1768175014370,0.002,3117.9,3117.7,0.252]
[1768175014571,0.96991641,3118.2,3117.7,0.252]
[1768175015388,0.96991641,3118.8,3117.7,0.252]
[1768175015591,0.96991641,3118.7,3117.7,0.64163923]
[1768175015759,0.96991641,3118.7,3117.7,0.252]
[1768175016189,0.96991641,3118.5,3117.7,0.252]
[1768175016657,0.96991641,3118.5,3117.6,0.00080432]
[1768175016859,0.96991641,3118.5,3117.7,0.252]
[1768175017385,0.00080384,3118.9,3117.8,0.43606016]
[1768175017586,0.00080384,3118.9,3117.7,9.87447491]
[1768175017587,0.00080384,3118.9,3118.0,0.51117404]
[1768175017891,0.00080344,3120.0,3118.7,0.51117404]
[1768175017892,0.97071985,3120.0,3118.7,0.51117404]
[1768175018108,0.97071985,3120.0,3118.8,9.87108426]
[1768175018314,0.97071985,3120.0,3118.8,6.66472284]
[1768175018458,0.97071985,3120.0,3118.9,0.51036681]
[1768175018807,0.96991641,3119.9,3118.5,0.00080392]
[1768175019013,0.96991641,3119.2,3118.5,0.00080392]
[1768175019157,0.50364511,3119.2,3118.6,3.20648801]
[1768175019359,0.96991641,3119.3,3118.6,3.20654477]
[1768175019785,0.96991641,3119.3,3118.7,3.2064129]
[1768175020172,0.96991641,3119.3,3118.5,3.20746515]
[1768175020173,0.96991641,3119.3,3118.5,0.00080392]
[1768175020377,0.96991641,3119.8,3118.5,0.64225942]
[1768175020583,0.96991641,3119.8,3118.5,1.15261955]
[1768175021334,0.96991641,3119.8,3118.5,0.64225942]
[1768175021614,0.97071985,3120.0,3118.6,0.51035684]
[1768175021803,0.97071985,3120.0,3118.8,0.51035684]
[1768175021995,0.97071985,3120.0,3118.8,4.572807]
[1768175022196,0.00080344,3120.0,3118.9,0.4824807]
[1768175022514,0.00080344,3120.0,3118.8,9.61908426]
[1768175023014,0.96991641,3120.1,3118.8,12.82544568]
[1768175023217,0.93403159,3120.1,3119.6,0.00080352]
[1768175024285,0.96991641,3119.9,3119.6,0.00080352]
[1768175024998,0.96991641,3119.9,3118.8,0.252]
[1768175025179,6.41105992,3120.0,3119.0,3.20614378]
[1768175025180,0.96991641,3119.7,3119.0,3.20614378]
[1768175025610,0.96991641,3119.7,3119.1,3.20603979]
[1768175025801,0.97071993,3120.0,3119.2,6.41184151]
[1768175026003,0.00080352,3120.0,3119.2,6.41184151]
[1768175026309,0.97071993,3120.0,3119.1,3.20602231]
[1768175026516,0.97071993,3120.0,3119.1,6.78730014]
[1768175026822,0.97071993,3120.0,3119.2,0.252]
[1768175027116,0.002,3119.6,3119.2,0.252]
[1768175027718,0.002,3119.9,3119.2,0.252]
[1768175027883,0.97191641,3119.9,3119.2,0.252]
[1768175028623,1.38770524,3119.8,3119.2,0.252]
[1768175028838,0.96991641,3119.7,3119.2,0.252]
[1768175029689,0.96991641,3119.7,3119.1,0.252]
[1768175029889,0.96991641,3119.7,3118.5,0.00080392]
[1768175030113,0.96991641,3119.7,3118.9,3.20619654]
[1768175030624,0.96991641,3119.6,3118.8,0.252]
[1768175030839,3.20543642,3119.7,3118.5,3.20742664]
[1768175030840,0.96991641,3119.4,3118.5,3.20742664]
[1768175031125,0.96991641,3119.4,3118.6,3.45856704]
[1768175031308,0.96991641,3119.4,3118.6,6.66513408]
[1768175031513,0.96991641,3119.4,3118.7,0.01339573]
[1768175031821,0.96991641,3119.4,3118.6,6.66513408]
[1768175032011,0.96991641,3119.4,3118.6,7.33172788]
[1768175033548,0.002,3119.9,3118.7,0.5462051]
[1768175033549,0.97191641,3119.9,3118.7,0.5462051]
[1768175033711,0.97191641,3119.9,3118.8,0.5462051]
[1768175034820,0.97191641,3119.9,3118.9,10.16497811]
[1768175035016,0.97191641,3119.9,3119.0,0.56975807]
[1768175035221,0.97191641,3119.9,3119.1,0.252]
[1768175036307,0.97191641,3119.9,3118.9,6.41251722]
[1768175036508,0.96991641,3119.8,3119.0,0.252]
[1768175036723,0.96991641,3119.8,3118.8,6.41268712]
[1768175036909,0.96991641,3119.6,3118.9,0.252]
[1768175038713,0.96991641,3119.6,3118.9,0.253]
[1768175039135,0.97191641,3119.6,3118.9,3.45919956]
[1768175039439,0.97191641,3119.6,3118.9,3.45924091]
[1768175039810,0.97191641,3119.6,3118.9,6.66549952]
[1768175040417,0.97191641,3119.6,3118.9,3.45924091]
[1768175040893,0.97191641,3119.6,3118.9,0.253]
[1768175041153,0.96991641,3119.5,3118.9,0.253]
[1768175041342,0.96991641,3119.5,3118.9,0.001]
[1768175041516,0.96991641,3119.4,3118.9,0.001]
[1768175043047,0.96991641,3119.4,3118.6,0.252]
[1768175043244,0.96991641,3119.2,3118.6,0.252]
[1768175044751,0.96991641,3119.2,3118.5,3.20740217]
[1768175044946,0.96991641,3119.2,3118.5,0.00080392]
[1768175044947,0.96585622,3119.1,3118.5,0.00080392]
[1768175048445,0.96585622,3119.0,3118.5,0.00080392]
[1768175048645,1.38304767,3118.9,3118.5,0.00080392]
[1768175048947,0.96585622,3118.9,3118.5,0.00080392]
[1768175050093,3.20578827,3119.4,3118.5,0.00080392]
[1768175050398,0.94898891,3119.3,3118.5,0.00080392]
[1768175050606,0.94898891,3119.3,3118.8,0.001]
[1768175052093,4.15489223,3119.3,3118.8,0.001]
[1768175052386,0.94898891,3119.1,3118.8,0.001]
[1768175053465,0.73606805,3119.2,3118.8,0.001]
[1768175053666,0.94898891,3119.7,3118.8,0.54714992]
[1768175054257,0.94898891,3119.7,3118.9,3.45825861]
[1768175058608,0.94898891,3119.7,3118.9,0.252]
[1768175058776,0.95098891,3119.6,3118.9,0.252]
[1768175060898,0.95098891,3119.6,3118.9,3.45823861]
[1768175062111,0.002,3119.3,3118.9,3.45823861]
[1768175062312,0.002,3119.3,3118.9,4.17941032]
[1768175062492,0.002,3119.3,3118.9,4.17940458]
[1768175062810,0.002,3119.3,3118.9,0.97317171]
[1768175063797,0.002,3119.3,3118.9,0.252]
[1768175065086,0.002,3119.3,3118.9,3.45824686]
[1768175065510,0.95098891,3119.6,3118.9,3.45824686]
[1768175065787,0.95098891,3119.6,3118.9,3.45251755]
[1768175065989,0.95098891,3119.6,3118.9,3.99864278]
[1768175066420,0.95098891,3119.6,3118.9,4.71924112]
[1768175066627,0.95098891,3119.6,3118.9,1.51299426]
[1768175066823,0.95098891,3119.6,3118.9,4.71921628]
[1768175067128,0.95098891,3119.6,3118.9,4.17309105]
[1768175067502,0.95098891,3119.6,3118.9,0.96686903]
[1768175067709,0.95098891,3119.6,3118.9,0.24627069]
[1768175071120,0.95098891,3119.6,3118.8,0.001]
[1768175071121,0.94898891,3119.5,3118.8,0.253]
[1768175074127,0.91985949,3119.3,3118.8,0.253]
[1768175079929,0.91785949,3119.2,3118.8,0.001]
[1768175080116,0.91785949,3119.0,3118.8,0.001]
[1768175080451,0.002,3119.3,3118.8,0.253]
[1768175080605,0.91785949,3119.5,3118.8,7.21181217]
[1768175081005,0.002,3119.6,3118.9,0.54609563]
[1768175081245,0.002,3119.9,3119.2,0.54609563]
[1768175081437,0.002,3119.9,3118.8,6.66571496]
[1768175081438,0.002,3119.9,3119.4,0.54609563]
[1768175082403,0.002,3119.9,3119.4,0.94648751]
[1768175082737,0.002,3119.9,3119.4,0.40039188]
[1768175083634,0.91985949,3119.9,3119.4,0.65239188]
[1768175084317,0.91985949,3119.9,3119.4,0.252]
[1768175085050,0.91785949,3119.8,3119.0,3.20611921]
[1768175085255,0.91785949,3119.8,3119.1,0.252]
[1768175085555,0.91785949,3119.8,3119.1,3.4580511]
[1768175085970,0.91785949,3119.8,3119.1,0.252]
[1768175086254,0.91785949,3119.5,3119.1,0.91843614]
[1768175088848,0.91785949,3119.5,3119.1,4.12446292]
[1768175089345,0.91785949,3119.5,3119.1,0.91843614]
[1768175089649,0.91785949,3119.5,3119.1,4.12447725]
[1768175090858,0.91985949,3119.9,3119.1,7.33053027]
[1768175091029,0.91985949,3119.9,3119.3,0.97984579]
[1768175091030,0.002,3119.9,3119.3,0.97984579]
[1768175093379,0.002,3119.9,3119.3,4.18564258]
[1768175093582,0.91985949,3119.9,3119.3,3.20579679]
[1768175093749,0.91985949,3119.9,3119.2,3.77583394]
[1768175094090,0.91985949,3119.9,3119.3,0.66643614]
[1768175094388,0.91985949,3119.9,3119.1,3.4579756]
[1768175094589,0.91985949,3119.9,3119.1,0.252]
[1768175094786,0.91985949,3119.9,3119.1,3.45799416]
[1768175097257,0.91985949,3119.9,3119.1,0.252]
[1768175097674,0.91985949,3119.9,3119.1,3.45803997]
[1768175097879,0.91985949,3119.9,3119.4,0.001]
[1768175098175,0.91785949,3119.5,3119.4,0.001]
[1768175100198,0.91785949,3119.5,3118.8,0.001]
[1768175100349,0.91785949,3119.4,3118.8,0.001]
[1768175100717,0.91785949,3119.3,3118.0,0.001]
[1768175100908,0.91785949,3118.8,3117.6,0.00080432]
[1768175101184,0.91785949,3118.8,3117.0,0.00080528]
[1768175101185,0.91785949,3117.9,3117.0,0.00080528]
[1768175101791,0.91785949,3117.3,3116.4,3.20957399]
[1768175101948,0.91785949,3117.3,3116.5,3.55486932]
[1768175102143,0.91785949,3117.3,3116.5,0.3461574]
[1768175102382,0.91785949,3117.3,3116.4,3.20960486]
[1768175102584,0.91785949,3117.3,3116.5,3.20872568]
[1768175102753,0.91785949,3117.3,3116.4,3.20959938]
[1768175103157,0.91785949,3117.3,3116.5,3.20871182]
[1768175104279,0.91785949,3117.3,3116.4,3.20959211]
[1768175104480,0.91785949,3117.3,3116.5,0.66705157]
[1768175104652,0.92562507,3117.2,3116.5,0.66705157]
[1768175106754,0.92562507,3117.2,3116.4,0.00080488]
[1768175106955,0.00080528,3117.4,3116.6,0.90461888]
[1768175107283,0.92642939,3118.0,3117.0,0.00080536]
[1768175107483,0.92642939,3118.0,3117.1,0.252]
[1768175108451,0.00080432,3118.0,3117.2,6.41601436]
[1768175108647,0.00080432,3118.0,3117.3,0.66680144]
[1768175109082,0.00080432,3118.0,3117.4,0.90461888]
[1768175109763,0.002,3117.7,3117.5,3.20769847]
[1768175109964,0.00280432,3118.0,3117.5,3.20769847]
[1768175110160,0.00280432,3118.0,3117.6,0.252]
[1768175110366,0.00280432,3118.0,3117.6,1.16250339]
[1768175110592,0.91164904,3118.6,3117.6,0.2528044]
[1768175110776,0.91164904,3118.6,3117.7,0.252]
[1768175111855,0.91164904,3118.6,3117.8,3.20738982]
[1768175112077,0.91164904,3118.6,3117.8,3.87416571]
[1768175113566,0.91164904,3118.6,3117.8,7.08155553]
[1768175113757,0.91164904,3118.6,3117.8,3.87416571]
[1768175116854,0.91164904,3118.5,3117.8,0.58685553]
[1768175117087,0.91164904,3118.5,3117.7,0.252]
[1768175117459,0.91164904,3118.3,3117.3,0.001]
[1768175117760,0.59495332,3118.4,3117.3,0.001]
[1768175117761,0.91164904,3117.9,3117.3,0.001]
[1768175120552,0.0008044,3118.0,3117.3,0.001]
[1768175121157,0.91245344,3118.0,3117.3,0.001]
[1768175122091,0.002,3117.7,3117.3,0.001]
[1768175123795,0.91364904,3117.7,3117.3,0.001]
[1768175124202,0.002,3117.7,3117.3,0.001]
[1768175126109,0.91364904,3117.7,3117.3,0.001]
[1768175127516,0.002,3117.7,3117.3,0.001]
[1768175127818,0.91164904,3117.6,3117.3,0.001]
[1768175128020,0.002,3117.7,3117.3,0.001]
[1768175128708,0.0028044,3118.0,3117.3,1.80522541]
[1768175129976,0.00080392,3118.9,3117.4,0.91050339]
[1768175130175,0.91164904,3118.8,3117.7,0.91050339]
[1768175132306,0.91164904,3118.8,3117.8,7.32528303]
[1768175132802,0.00080392,3118.9,3117.9,0.91050339]
[1768175133005,0.00080392,3118.9,3118.1,0.91050339]
[1768175136223,0.00080392,3118.9,3118.2,3.20697838]
[1768175136612,0.94544173,3118.9,3118.1,3.20704351]
[1768175137285,0.94544173,3118.9,3118.0,0.51470949]
[1768175137492,0.94544173,3118.9,3118.0,0.252]
[1768175137692,0.94544173,3118.9,3117.8,0.252]
[1768175138391,0.94463781,3118.7,3117.6,3.20934896]
[1768175138591,0.94463781,3118.7,3117.6,0.25380448]
[1768175138792,0.94463781,3118.7,3117.6,0.00180448]
[1768175138992,0.94463781,3118.5,3117.6,0.00180448]
[1768175141353,0.94463781,3118.3,3117.6,0.00180448]
[1768175141564,0.94463781,3118.1,3117.6,0.00180448]
[1768175144077,4.4038219,3118.0,3117.6,0.00180448]
[1768175144271,0.94463781,3117.9,3117.6,0.00180448]
[1768175145160,0.94463781,3117.8,3117.6,0.00180448]
[1768175146190,4.15204771,3117.8,3117.6,0.00180448]
[1768175146392,0.94463781,3117.8,3117.6,0.00180448]
[1768175148292,4.15202955,3117.8,3117.6,0.00180448]
[1768175148489,0.94463781,3117.7,3117.0,0.00080536]
[1768175148689,0.94463781,3117.6,3117.0,0.00080536]
[1768175149583,0.41520296,3117.7,3117.0,0.00080536]
[1768175149788,4.15202955,3117.8,3117.0,0.00080536]
[1768175150968,0.94463781,3117.7,3117.0,0.00080536]
[1768175152890,0.94463781,3117.7,3116.4,3.46158137]
[1768175152891,0.94463781,3117.3,3116.4,0.25280488]
[1768175153063,3.20800718,3117.2,3116.4,0.25280488]
[1768175153271,1.19663781,3117.3,3116.4,1.6980565]
[1768175153272,4.40458436,3117.3,3116.4,1.6980565]
[1768175153469,4.40458436,3117.3,3116.4,4.90687879]
[1768175153799,4.40458436,3117.3,3116.4,1.6980565]
[1768175154296,1.19663781,3117.3,3116.4,4.9068457]
[1768175154470,1.19663781,3117.3,3116.5,0.49068457]
[1768175155300,0.94463781,3117.2,3116.5,3.69939601]
[1768175156167,0.94463781,3117.2,3116.5,0.49068457]
[1768175156494,3.45991445,3117.3,3116.6,0.99916464]
[1768175157213,3.45991445,3117.3,3116.5,0.49068457]
[1768175157214,7.61246671,3117.3,3116.5,0.49068457]
[1768175157414,3.2081101,3117.1,3116.4,1.25196952]
[1768175157794,0.34607198,3117.2,3116.5,0.99916464]
[1768175158001,0.252,3117.3,3116.5,0.99916464]
[1768175158002,3.45999387,3117.3,3116.5,0.99916464]
[1768175158773,3.45999387,3117.3,3116.8,0.001]
[1768175158969,0.252,3117.3,3116.8,0.001]
[1768175159215,3.45992536,3117.3,3116.8,0.001]
[1768175159782,6.66785072,3117.3,3116.8,0.001]
[1768175159991,7.42938011,3117.3,3116.8,0.001]
[1768175160321,8.37401792,3117.3,3116.8,0.001]
[1768175160818,5.16610419,3117.3,3116.8,0.001]
[1768175161212,8.37404118,3117.3,3116.8,0.001]
[1768175161783,4.22146638,3117.3,3116.8,0.001]
[1768175161985,0.94463781,3117.2,3116.8,0.001]
[1768175163391,4.15269256,3117.2,3116.8,0.001]
[1768175163640,7.87748021,3117.1,3116.8,0.001]
[1768175163811,0.94463781,3117.0,3116.8,0.001]
[1768175164416,0.94463781,3117.0,3116.4,0.00080488]
[1768175165818,4.64466719,3117.1,3116.4,0.00080488]
[1768175166926,4.64466719,3117.1,3116.4,0.9593965]
[1768175168420,4.64466,3117.1,3116.4,0.9593965]
[1768175169324,3.20811222,3117.1,3116.4,0.9593965]
[1768175170106,3.20800718,3117.2,3116.4,0.9593965]
[1768175170433,0.252,3117.1,3116.5,0.92327323]
[1768175171416,0.252,3117.1,3116.7,0.001]
[1768175171723,0.002,3116.8,3116.7,0.001]
[1768175173394,0.002,3116.8,3116.7,0.92427323]
[1768175177420,0.002,3117.1,3116.7,0.92427323]
[1768175177632,0.00280536,3117.4,3116.8,0.92327323]
[1768175177833,0.00280536,3117.4,3117.0,0.92327323]
[1768175178764,0.00080448,3118.0,3117.5,0.92327323]
[1768175178914,0.00080448,3118.0,3117.6,0.92327323]
[1768175184344,0.002,3117.7,3117.4,0.92327323]
[1768175184558,0.002,3117.7,3117.3,0.92327323]
[1768175185253,0.002,3117.7,3117.5,0.92327323]
[1768175185427,0.002,3117.7,3117.5,1.33639051]
[1768175186347,0.002,3117.7,3117.2,1.17527323]
[1768175186679,0.002,3117.7,3117.0,0.00080544]
[1768175186880,0.002,3117.7,3117.2,4.13127135]
[1768175187084,0.002,3117.7,3117.3,0.92327323]
[1768175189457,0.002,3117.7,3117.1,0.92327323]
[1768175190353,0.002,3117.7,3117.2,0.92327323]
[1768175193888,0.95531431,3117.7,3117.1,0.47976719]
[1768175194792,0.002,3117.7,3117.0,1.20816804]
[1768175195888,0.95531431,3117.7,3117.0,1.20816804]
[1768175196293,0.95531431,3117.7,3117.5,0.001]
[1768175196485,0.002,3117.7,3117.5,0.001]
[1768175198485,0.95531431,3117.7,3117.5,0.001]
[1768175198797,0.002,3117.7,3117.5,0.001]
[1768175200499,0.002,3117.7,3117.5,0.9563626]
[1768175201521,0.002,3117.7,3117.5,0.001]
[1768175201820,0.32293407,3117.7,3117.5,0.001]
[1768175203022,0.002,3117.7,3117.5,0.001]
[1768175203517,0.002,3117.7,3117.5,0.9563626]
[1768175208409,0.002,3117.7,3117.5,0.001]
[1768175208613,1e-08,3118.0,3117.7,0.9553626]
[1768175208837,0.002,3118.4,3117.9,0.9553626]
[1768175209340,0.002,3118.4,3117.7,0.9553626]
[1768175211137,0.002,3118.4,3117.9,0.9553626]
[1768175211322,0.002,3118.4,3118.1,0.9553626]
[1768175211518,0.002,3118.6,3118.1,0.9553626]
[1768175211742,0.00280392,3118.9,3118.3,0.9553626]
[1768175212715,0.002,3119.3,3118.9,0.9553626]
[1768175213408,0.002,3119.3,3118.9,4.16157612]
[1768175213610,0.002,3119.3,3118.9,3.20621352]
[1768175213844,0.254,3119.6,3119.0,0.9553626]
[1768175214625,0.002,3119.6,3119.0,0.9553626]
[1768175215864,0.002,3119.6,3119.0,4.16149594]
[1768175216447,0.002,3119.6,3119.1,0.9553626]
[1768175216621,0.95531431,3119.6,3118.7,0.9553626]
[1768175217137,0.95331431,3119.5,3118.5,0.000804]
[1768175217320,0.95331431,3119.4,3118.5,0.000804]
[1768175217831,0.95331431,3118.8,3117.6,4.41573428]
[1768175218031,0.95331431,3118.6,3117.6,4.41573428]
[1768175218228,0.73662428,3118.5,3117.6,4.41573428]
[1768175218920,0.73662428,3118.5,3117.6,7.62332986]
[1768175219115,0.73662428,3118.5,3117.6,4.41573428]
[1768175219331,0.000804,3118.9,3117.7,0.9553626]
[1768175219535,3.20706665,3118.9,3117.7,0.9553626]
[1768175219854,6.4133293,3118.9,3117.7,0.9553626]
[1768175220032,0.000804,3118.9,3117.9,0.9553626]
[1768175221421,0.95411831,3118.9,3117.6,0.00080456]
[1768175221642,0.95331431,3118.7,3117.6,0.00080456]
[1768175222161,0.95331431,3118.5,3117.6,0.00080456]
[1768175224761,0.90324174,3118.3,3117.6,0.00080456]
[1768175224954,0.90324174,3118.1,3117.6,0.00080456]
[1768175225173,0.90324174,3118.0,3117.6,0.00080456]
[1768175226228,0.252,3118.1,3117.6,0.00080456]
[1768175226531,1.05235598,3118.2,3117.6,0.9854481]
[1768175226757,3.20682359,3118.4,3117.6,0.9854481]
[1768175227269,6.41364718,3118.4,3117.6,0.9854481]
[1768175227650,3.20682359,3118.4,3117.6,0.9854481]
[1768175228830,0.90324174,3118.5,3117.6,0.9854481]
[1768175230256,0.90324174,3118.5,3117.9,0.001]
[1768175230441,0.73163758,3118.4,3117.9,0.001]
[1768175231050,3.93843431,3118.4,3117.9,0.001]
[1768175232140,0.73163758,3118.4,3117.9,0.90746033]
[1768175232340,0.252,3118.7,3117.9,0.90746033]
[1768175233569,4.17448366,3118.9,3118.0,0.90646033]
[1768175233570,0.000804,3118.9,3118.0,0.90646033]
[1768175234071,6.4133305,3118.9,3118.0,0.90646033]
[1768175235574,0.000804,3118.9,3118.0,0.90646033]
[1768175235745,0.000804,3118.9,3118.2,0.90646033]
[1768175235944,0.000804,3118.9,3117.9,1.15946033]
[1768175236283,0.96819947,3118.9,3117.9,0.001]
[1768175236579,0.96739547,3118.7,3117.9,0.001]
[1768175237779,0.96739547,3118.5,3117.9,0.001]
[1768175238065,6.41313408,3118.6,3117.9,0.001]
[1768175238066,1.70544843,3118.4,3117.9,0.001]
[1768175238646,0.96739547,3118.3,3117.9,0.001]
[1768175240456,0.96739547,3118.2,3117.9,0.001]
[1768175242154,4.1744767,3118.1,3117.9,0.001]
[1768175245263,0.96739547,3118.1,3117.9,0.001]
[1768175247303,4.1745516,3118.1,3117.9,0.001]
[1768175248658,0.96739547,3118.1,3117.9,0.001]
[1768175249495,4.17451042,3118.1,3117.9,0.001]
[1768175250573,0.96739547,3118.1,3117.9,0.001]
[1768175251398,1.21939547,3118.6,3117.9,0.90746033]
[1768175251591,0.96739547,3118.5,3117.9,0.001]
[1768175252110,1.28811711,3118.7,3117.9,0.90746033]
[1768175252285,0.252,3118.6,3117.9,0.90746033]
[1768175253475,3.45862101,3118.6,3118.2,0.001]
[1768175253992,0.252,3118.6,3118.2,0.001]
[1768175254198,4.17391311,3118.7,3118.2,0.001]
[1768175255494,3.20651764,3118.7,3118.2,0.94737466]